[Event "Early-Titled-Tuesday-Blitz-January-30-2024"]
[Site "Chess.com"]
[Date "2024.01.30"]
[Round "8"]
[White "NM_Antelacus"]
[Black "HeroWilczek"]
[Result "1-0"]
[WhiteElo "2254"]
[BlackElo "2446"]
[TimeControl "180+1"]
[EndTime "9:28:35 PST"]
[Termination "NM_Antelacus won by resignation"]

1. e4 {[%clk 0:03:00.9]} 1... e6 {[%clk 0:02:55.7]} 2. d4 {[%clk 0:03:00]} 2...
d5 {[%clk 0:02:53.3]} 3. e5 {[%clk 0:03:00.2]} 3... c5 {[%clk 0:02:53.3]} 4. c3
{[%clk 0:03:00.1]} 4... Nc6 {[%clk 0:02:54.2]} 5. Nf3 {[%clk 0:03:00.1]} 5...
Qb6 {[%clk 0:02:51.9]} 6. a3 {[%clk 0:03:00]} 6... c4 {[%clk 0:02:47.2]} 7. Be2
{[%clk 0:02:53.7]} 7... Na5 {[%clk 0:02:47.7]} 8. Nbd2 {[%clk 0:02:52.1]} 8...
Bd7 {[%clk 0:02:47.5]} 9. O-O {[%clk 0:02:51.1]} 9... Ne7 {[%clk 0:02:48.2]} 10.
Nh4 {[%clk 0:02:37.4]} 10... Qc7 {[%clk 0:02:47.1]} 11. f4 {[%clk 0:02:35.6]}
11... Nc8 {[%clk 0:02:47.6]} 12. Bg4 {[%clk 0:02:28.2]} 12... Nb6 {[%clk
0:02:47.6]} 13. f5 {[%clk 0:02:26.5]} 13... O-O-O {[%clk 0:02:41.6]} 14. fxe6
{[%clk 0:02:23.9]} 14... fxe6 {[%clk 0:02:40.8]} 15. Rf7 {[%clk 0:02:16.9]}
15... Qc6 {[%clk 0:02:40.2]} 16. Bh3 {[%clk 0:02:04.7]} 16... g5 {[%clk
0:02:37.4]} 17. Nhf3 {[%clk 0:02:00.5]} 17... h6 {[%clk 0:02:33.4]} 18. Ne1
{[%clk 0:01:58.6]} 18... Nb3 {[%clk 0:02:23.6]} 19. Nxb3 {[%clk 0:01:57.3]}
19... cxb3 {[%clk 0:02:24.5]} 20. Qxb3 {[%clk 0:01:51.3]} 20... Rg8 {[%clk
0:02:09.4]} 21. g3 {[%clk 0:01:48.5]} 21... g4 {[%clk 0:01:58.9]} 22. Bf1 {[%clk
0:01:47.5]} 22... Bg7 {[%clk 0:01:59.6]} 23. Nd3 {[%clk 0:01:45.3]} 23... Rdf8
{[%clk 0:01:55.5]} 24. Rxf8+ {[%clk 0:01:43.9]} 24... Rxf8 {[%clk 0:01:56.4]}
25. Nc5 {[%clk 0:01:42.3]} 25... Be8 {[%clk 0:01:39.4]} 26. Bf4 {[%clk 0:01:39]}
26... h5 {[%clk 0:01:33.5]} 27. a4 {[%clk 0:01:34.2]} 27... Bf7 {[%clk
0:01:18.3]} 28. a5 {[%clk 0:01:30]} 28... Nc4 {[%clk 0:01:16.7]} 29. Bxc4 {[%clk
0:01:20.5]} 29... dxc4 {[%clk 0:01:17.6]} 30. Qxc4 {[%clk 0:01:19.7]} 30... h4
{[%clk 0:01:17.8]} 31. Qe2 {[%clk 0:01:15.4]} 31... Bh5 {[%clk 0:01:12.7]} 32.
b4 {[%clk 0:01:10.7]} 32... hxg3 {[%clk 0:01:07.4]} 33. hxg3 {[%clk 0:01:08.1]}
33... Bg6 {[%clk 0:01:07.8]} 34. b5 {[%clk 0:00:51.8]} 34... Qd5 {[%clk
0:01:03.8]} 35. Qg2 {[%clk 0:00:50]} 1-0

[Event "Early-Titled-Tuesday-Blitz-January-30-2024"]
[Site "Chess.com"]
[Date "2024.01.30"]
[Round "8"]
[White "Barmen_EV"]
[Black "Kildepiotr"]
[Result "0-1"]
[WhiteElo "2485"]
[BlackElo "2679"]
[TimeControl "180+1"]
[EndTime "9:28:36 PST"]
[Termination "Kildepiotr won on time"]

1. e4 {[%clk 0:03:00.9]} 1... g6 {[%clk 0:02:57.7]} 2. d4 {[%clk 0:03:00.9]}
2... Bg7 {[%clk 0:02:58.1]} 3. Nc3 {[%clk 0:03:01.5]} 3... c6 {[%clk 0:02:58.7]}
4. Be2 {[%clk 0:02:58.3]} 4... d5 {[%clk 0:02:58.5]} 5. e5 {[%clk 0:02:58.5]}
5... Nh6 {[%clk 0:02:58.6]} 6. h4 {[%clk 0:02:57.4]} 6... f6 {[%clk 0:02:56.6]}
7. h5 {[%clk 0:02:52.9]} 7... g5 {[%clk 0:02:50.1]} 8. f4 {[%clk 0:02:53.1]}
8... gxf4 {[%clk 0:02:47]} 9. Bxf4 {[%clk 0:02:54]} 9... fxe5 {[%clk 0:02:45]}
10. Bxe5 {[%clk 0:02:50.8]} 10... Bxe5 {[%clk 0:02:43.2]} 11. dxe5 {[%clk
0:02:51.7]} 11... Nf5 {[%clk 0:02:41.1]} 12. h6 {[%clk 0:02:39.4]} 12... Ne3
{[%clk 0:02:19.6]} 13. Bh5+ {[%clk 0:02:36.9]} 13... Kd7 {[%clk 0:02:18.7]} 14.
Qd2 {[%clk 0:01:54.1]} 14... Qb6 {[%clk 0:02:10.8]} 15. Na4 {[%clk 0:01:32.9]}
15... Qb4 {[%clk 0:02:09.7]} 16. c3 {[%clk 0:01:22.2]} 16... Nxg2+ {[%clk
0:01:57.1]} 17. Qxg2 {[%clk 0:01:16]} 17... Qxa4 {[%clk 0:01:57.5]} 18. Ne2
{[%clk 0:00:58.2]} 18... Rf8 {[%clk 0:01:37.2]} 19. Qg7 {[%clk 0:00:45.1]} 19...
Qe4 {[%clk 0:01:36.3]} 20. O-O-O {[%clk 0:00:20.6]} 20... Rf2 {[%clk 0:01:28.3]}
21. Bg4+ {[%clk 0:00:15.5]} 21... Kc7 {[%clk 0:01:28.1]} 22. Qxe7+ {[%clk
0:00:15.8]} 22... Nd7 {[%clk 0:01:20.6]} 23. Qd6+ {[%clk 0:00:14.5]} 23... Kb6
{[%clk 0:01:20.9]} 24. Bxd7 {[%clk 0:00:04.4]} 24... Rxe2 {[%clk 0:01:11.9]} 0-1

[Event "Early-Titled-Tuesday-Blitz-January-30-2024"]
[Site "Chess.com"]
[Date "2024.01.30"]
[Round "8"]
[White "Slovineanu"]
[Black "Baby_Legs"]
[Result "0-1"]
[WhiteElo "2437"]
[BlackElo "2636"]
[TimeControl "180+1"]
[EndTime "9:28:42 PST"]
[Termination "Baby_Legs won on time"]

1. d4 {[%clk 0:02:59.6]} 1... Nf6 {[%clk 0:02:59.3]} 2. Nf3 {[%clk 0:03:00.1]}
2... e6 {[%clk 0:02:59.8]} 3. c4 {[%clk 0:02:59.9]} 3... a6 {[%clk 0:02:58.5]}
4. e3 {[%clk 0:02:58.7]} 4... d5 {[%clk 0:02:58]} 5. b3 {[%clk 0:02:57.8]} 5...
Bb4+ {[%clk 0:02:56.1]} 6. Nbd2 {[%clk 0:02:57.7]} 6... c5 {[%clk 0:02:55.1]} 7.
a3 {[%clk 0:02:54.6]} 7... Bc3 {[%clk 0:02:53.1]} 8. Rb1 {[%clk 0:02:50.5]} 8...
cxd4 {[%clk 0:02:53.1]} 9. exd4 {[%clk 0:02:45.8]} 9... Nc6 {[%clk 0:02:52.6]}
10. Bb2 {[%clk 0:02:38.7]} 10... Bxb2 {[%clk 0:02:49.1]} 11. Rxb2 {[%clk
0:02:39.1]} 11... dxc4 {[%clk 0:02:48.8]} 12. Nxc4 {[%clk 0:02:39.1]} 12... b5
{[%clk 0:02:46.3]} 13. Nce5 {[%clk 0:02:36.9]} 13... Bb7 {[%clk 0:02:46.4]} 14.
Be2 {[%clk 0:02:29.9]} 14... Nxe5 {[%clk 0:02:33.6]} 15. Nxe5 {[%clk 0:02:07.4]}
15... Qa5+ {[%clk 0:02:25.4]} 16. b4 {[%clk 0:01:56.2]} 16... Qxa3 {[%clk
0:02:25.2]} 17. Rb3 {[%clk 0:01:56.8]} 17... Qa4 {[%clk 0:02:20.7]} 18. O-O
{[%clk 0:01:20]} 18... Bd5 {[%clk 0:02:20]} 19. Rc3 {[%clk 0:01:13.6]} 19...
Qxb4 {[%clk 0:02:05.6]} 20. Qc1 {[%clk 0:01:01.3]} 20... O-O {[%clk 0:02:02.5]}
21. Rg3 {[%clk 0:00:56.4]} 21... Ne4 {[%clk 0:02:00.9]} 22. Rg4 {[%clk
0:00:27.5]} 22... Qd2 {[%clk 0:01:57.9]} 23. Qxd2 {[%clk 0:00:20.4]} 23... Nxd2
{[%clk 0:01:58.8]} 24. Rd1 {[%clk 0:00:17.5]} 24... Ne4 {[%clk 0:01:58.8]} 25.
Bf3 {[%clk 0:00:17.3]} 25... Nc3 {[%clk 0:01:54.9]} 26. Rd3 {[%clk 0:00:12.2]}
26... Bxf3 {[%clk 0:01:52.1]} 27. Rxf3 {[%clk 0:00:10.4]} 27... Nd5 {[%clk
0:01:52.2]} 28. h4 {[%clk 0:00:09.4]} 28... f5 {[%clk 0:01:41.6]} 29. Rg5 {[%clk
0:00:08.2]} 29... b4 {[%clk 0:01:40]} 30. h5 {[%clk 0:00:07.3]} 30... Ra7 {[%clk
0:01:34.8]} 31. h6 {[%clk 0:00:06.5]} 31... g6 {[%clk 0:01:31.6]} 32. Rgg3
{[%clk 0:00:02.9]} 32... a5 {[%clk 0:01:30.1]} 33. Rb3 {[%clk 0:00:01.9]} 33...
a4 {[%clk 0:01:28.7]} 34. Rb1 {[%clk 0:00:01.9]} 34... Rc8 {[%clk 0:01:27.5]}
0-1

[Event "Early-Titled-Tuesday-Blitz-January-30-2024"]
[Site "Chess.com"]
[Date "2024.01.30"]
[Round "8"]
[White "amanjazu"]
[Black "PolandHussars"]
[Result "1-0"]
[WhiteElo "2441"]
[BlackElo "2583"]
[TimeControl "180+1"]
[EndTime "9:28:44 PST"]
[Termination "amanjazu won by resignation"]

1. g3 {[%clk 0:03:00.9]} 1... d5 {[%clk 0:02:56.5]} 2. Bg2 {[%clk 0:03:01.8]}
2... Nf6 {[%clk 0:02:56]} 3. f4 {[%clk 0:03:02.1]} 3... e6 {[%clk 0:02:52.2]} 4.
Nf3 {[%clk 0:03:02.4]} 4... b5 {[%clk 0:02:51.3]} 5. O-O {[%clk 0:03:03.3]} 5...
Bb7 {[%clk 0:02:51.6]} 6. d3 {[%clk 0:03:04.2]} 6... Nbd7 {[%clk 0:02:51.8]} 7.
a3 {[%clk 0:03:04.3]} 7... c5 {[%clk 0:02:51.5]} 8. h3 {[%clk 0:03:02.4]} 8...
Be7 {[%clk 0:02:51.9]} 9. Kh2 {[%clk 0:03:03.2]} 9... Qc7 {[%clk 0:02:51.7]} 10.
Qe1 {[%clk 0:03:03.3]} 10... h5 {[%clk 0:02:49.9]} 11. Nc3 {[%clk 0:02:59.2]}
11... a6 {[%clk 0:02:48.4]} 12. Ng5 {[%clk 0:02:50.4]} 12... Nf8 {[%clk
0:02:38.1]} 13. e4 {[%clk 0:02:47.1]} 13... d4 {[%clk 0:02:35.3]} 14. Nd1 {[%clk
0:02:43.1]} 14... h4 {[%clk 0:02:24.5]} 15. g4 {[%clk 0:02:39.6]} 15... Nxg4+
{[%clk 0:02:24.4]} 16. hxg4 {[%clk 0:02:36.8]} 16... Bxg5 {[%clk 0:02:24.9]} 17.
e5 {[%clk 0:02:36]} 17... Bxg2 {[%clk 0:02:21.9]} 18. Kxg2 {[%clk 0:02:36.9]}
18... Qb7+ {[%clk 0:02:11.3]} 19. Kh3 {[%clk 0:02:34.8]} 19... Be7 {[%clk
0:02:07.2]} 20. a4 {[%clk 0:02:28.3]} 20... b4 {[%clk 0:02:01.7]} 21. b3 {[%clk
0:02:25.6]} 21... O-O-O {[%clk 0:02:01.3]} 22. a5 {[%clk 0:02:22.3]} 22... Ng6
{[%clk 0:01:46.2]} 23. Qe2 {[%clk 0:02:17.1]} 23... Kb8 {[%clk 0:01:42.7]} 24.
Nb2 {[%clk 0:02:03.6]} 24... Rd5 {[%clk 0:01:38]} 25. Nc4 {[%clk 0:02:02]} 25...
Bd8 {[%clk 0:01:27.1]} 26. f5 {[%clk 0:02:01.1]} 26... Ne7 {[%clk 0:01:03.9]}
27. Qe4 {[%clk 0:01:34.3]} 27... Bc7 {[%clk 0:00:50.6]} 28. Bg5 {[%clk
0:01:29.7]} 28... exf5 {[%clk 0:00:49.2]} 29. gxf5 {[%clk 0:01:26.1]} 29... Nc6
{[%clk 0:00:49.3]} 30. Qxd5 {[%clk 0:01:22.5]} 30... f6 {[%clk 0:00:44.7]} 31.
exf6 {[%clk 0:01:14.8]} 31... gxf6 {[%clk 0:00:45.3]} 32. Bxf6 {[%clk
0:01:14.8]} 32... Rf8 {[%clk 0:00:44.8]} 33. Nd6 {[%clk 0:01:07]} 33... Bxd6
{[%clk 0:00:42.6]} 34. Qxd6+ {[%clk 0:01:07.9]} 34... Ka7 {[%clk 0:00:42.8]} 35.
Qxc5+ {[%clk 0:01:07]} 35... Ka8 {[%clk 0:00:42.5]} 36. Qxf8+ {[%clk 0:01:07.1]}
1-0

[Event "Early-Titled-Tuesday-Blitz-January-30-2024"]
[Site "Chess.com"]
[Date "2024.01.30"]
[Round "8"]
[White "EdmundPlayer"]
[Black "blitis"]
[Result "0-1"]
[WhiteElo "2303"]
[BlackElo "2613"]
[TimeControl "180+1"]
[EndTime "9:28:46 PST"]
[Termination "blitis won by checkmate"]

1. Nc3 {[%clk 0:03:00.9]} 1... d5 {[%clk 0:02:59.1]} 2. e4 {[%clk 0:03:01.8]}
2... Nf6 {[%clk 0:02:57.1]} 3. exd5 {[%clk 0:02:59.8]} 3... Nxd5 {[%clk
0:02:56.7]} 4. Ne4 {[%clk 0:02:56.8]} 4... e5 {[%clk 0:02:54]} 5. Nf3 {[%clk
0:02:52.3]} 5... f5 {[%clk 0:02:51.8]} 6. Ng3 {[%clk 0:02:45.5]} 6... e4 {[%clk
0:02:39]} 7. Nd4 {[%clk 0:02:31.2]} 7... Qf6 {[%clk 0:02:38.4]} 8. c3 {[%clk
0:02:21.4]} 8... c5 {[%clk 0:02:25]} 9. Nb5 {[%clk 0:02:05.5]} 9... a6 {[%clk
0:02:21.8]} 10. c4 {[%clk 0:01:56.2]} 10... axb5 {[%clk 0:02:16.2]} 11. cxd5
{[%clk 0:01:55.6]} 11... c4 {[%clk 0:02:11.9]} 12. f3 {[%clk 0:01:44.6]} 12...
Qh4 {[%clk 0:01:54.5]} 13. fxe4 {[%clk 0:01:40.9]} 13... fxe4 {[%clk 0:01:38.7]}
14. Qh5+ {[%clk 0:00:43.7]} 14... Qxh5 {[%clk 0:01:37.1]} 15. Nxh5 {[%clk
0:00:44.6]} 15... Na6 {[%clk 0:01:24.5]} 16. b3 {[%clk 0:00:40.6]} 16... Nb4
{[%clk 0:01:19.5]} 17. Kf2 {[%clk 0:00:30.2]} 17... Bc5+ {[%clk 0:00:59.2]} 18.
Kg3 {[%clk 0:00:30.5]} 18... Bd6+ {[%clk 0:00:57.3]} 19. Kh4 {[%clk 0:00:27.4]}
19... O-O {[%clk 0:00:45.8]} 20. bxc4 {[%clk 0:00:23.3]} 20... g6 {[%clk
0:00:44.2]} 21. Ng3 {[%clk 0:00:14.8]} 21... Be7# {[%clk 0:00:40]} 0-1

[Event "Early-Titled-Tuesday-Blitz-January-30-2024"]
[Site "Chess.com"]
[Date "2024.01.30"]
[Round "8"]
[White "Alen_Yeremyann"]
[Black "Cambek64"]
[Result "1-0"]
[WhiteElo "2731"]
[BlackElo "2512"]
[TimeControl "180+1"]
[EndTime "9:28:51 PST"]
[Termination "Alen_Yeremyann won on time"]

1. Nf3 {[%clk 0:02:44.7]} 1... b5 {[%clk 0:01:49.8]} 2. e3 {[%clk 0:02:42.7]}
2... a6 {[%clk 0:01:48.7]} 3. a4 {[%clk 0:02:42.1]} 3... b4 {[%clk 0:01:47.5]}
4. a5 {[%clk 0:02:41.2]} 4... Bb7 {[%clk 0:01:46.3]} 5. Be2 {[%clk 0:02:41.7]}
5... c5 {[%clk 0:01:46.4]} 6. O-O {[%clk 0:02:41.9]} 6... Nf6 {[%clk 0:01:46.6]}
7. b3 {[%clk 0:02:42.4]} 7... e6 {[%clk 0:01:46.6]} 8. c4 {[%clk 0:02:43.1]}
8... Be7 {[%clk 0:01:46.9]} 9. d4 {[%clk 0:02:43.4]} 9... d6 {[%clk 0:01:46.9]}
10. Bb2 {[%clk 0:02:43.8]} 10... Nbd7 {[%clk 0:01:46.3]} 11. Nbd2 {[%clk
0:02:44.5]} 11... O-O {[%clk 0:01:46.3]} 12. Bd3 {[%clk 0:02:45.2]} 12... Qc7
{[%clk 0:01:45.7]} 13. e4 {[%clk 0:02:45.4]} 13... cxd4 {[%clk 0:01:44.9]} 14.
Nxd4 {[%clk 0:02:45.6]} 14... Nc5 {[%clk 0:01:45.3]} 15. Bc2 {[%clk 0:02:45.3]}
15... d5 {[%clk 0:01:35.3]} 16. exd5 {[%clk 0:02:28.2]} 16... exd5 {[%clk
0:01:34.5]} 17. Nf5 {[%clk 0:02:21.2]} 17... dxc4 {[%clk 0:01:25.8]} 18. Nxc4
{[%clk 0:02:09.4]} 18... Rad8 {[%clk 0:01:24.2]} 19. Qc1 {[%clk 0:02:08.8]}
19... Nfe4 {[%clk 0:01:11.4]} 20. Qh6 {[%clk 0:01:55.7]} 20... Ne6 {[%clk
0:00:41.8]} 21. Nxg7 {[%clk 0:01:45.8]} 21... Bg5 {[%clk 0:00:08.9]} 22. Nf5
{[%clk 0:01:43.4]} 22... f6 {[%clk 0:00:05.4]} 23. Qh5 {[%clk 0:01:35.5]} 23...
Nf4 {[%clk 0:00:05.2]} 24. Qg4 {[%clk 0:01:24.5]} 24... h5 {[%clk 0:00:05.6]}
25. Nh6+ {[%clk 0:01:23.1]} 25... Kh7 {[%clk 0:00:04.5]} 26. Qf5+ {[%clk
0:01:23.7]} 26... Kxh6 {[%clk 0:00:05.1]} 27. Bxe4 {[%clk 0:01:23.7]} 27... Bxe4
{[%clk 0:00:03.9]} 28. Qxe4 {[%clk 0:01:24.6]} 28... Rfe8 {[%clk 0:00:02.7]} 29.
Qf3 {[%clk 0:01:15]} 29... Rd3 {[%clk 0:00:01.8]} 30. Ne3 {[%clk 0:01:15.4]} 1-0

[Event "Early-Titled-Tuesday-Blitz-January-30-2024"]
[Site "Chess.com"]
[Date "2024.01.30"]
[Round "8"]
[White "jamengrand"]
[Black "DeArron_Fox"]
[Result "0-1"]
[WhiteElo "2259"]
[BlackElo "2466"]
[TimeControl "180+1"]
[EndTime "9:28:51 PST"]
[Termination "DeArron_Fox won by resignation"]

1. e4 {[%clk 0:03:00.9]} 1... c5 {[%clk 0:02:21.8]} 2. Nf3 {[%clk 0:03:00.2]}
2... e6 {[%clk 0:02:19.6]} 3. d4 {[%clk 0:03:00.2]} 3... cxd4 {[%clk 0:02:20.5]}
4. Bg5 {[%clk 0:03:00.3]} 4... Qb6 {[%clk 0:01:46.4]} 5. Qxd4 {[%clk 0:02:59]}
5... Qxd4 {[%clk 0:01:19.8]} 6. Nxd4 {[%clk 0:02:59.9]} 6... a6 {[%clk
0:01:19.5]} 7. Nc3 {[%clk 0:02:57.8]} 7... Be7 {[%clk 0:00:31]} 8. Be3 {[%clk
0:02:50.3]} 8... d6 {[%clk 0:00:28.1]} 9. O-O-O {[%clk 0:02:48.5]} 9... Nf6
{[%clk 0:00:27.3]} 10. f3 {[%clk 0:02:44.4]} 10... O-O {[%clk 0:00:27.6]} 11. g4
{[%clk 0:02:44.7]} 11... Nbd7 {[%clk 0:00:25]} 12. g5 {[%clk 0:02:42.9]} 12...
Nh5 {[%clk 0:00:22.4]} 13. Rg1 {[%clk 0:02:42.6]} 13... b5 {[%clk 0:00:18.5]}
14. a3 {[%clk 0:02:41.8]} 14... Bb7 {[%clk 0:00:18.3]} 15. Be2 {[%clk 0:02:42]}
15... g6 {[%clk 0:00:14.7]} 16. Nb3 {[%clk 0:02:37.2]} 16... Rac8 {[%clk
0:00:10.2]} 17. Na5 {[%clk 0:02:37.3]} 17... Ba8 {[%clk 0:00:10.6]} 18. Rd2
{[%clk 0:02:27.6]} 18... f6 {[%clk 0:00:07.7]} 19. gxf6 {[%clk 0:02:26.2]} 19...
Rxf6 {[%clk 0:00:08.3]} 20. Rgd1 {[%clk 0:02:25.1]} 20... Ne5 {[%clk 0:00:08.1]}
21. Rf1 {[%clk 0:02:07.9]} 21... Nf4 {[%clk 0:00:06.1]} 22. Bd1 {[%clk
0:02:02.3]} 22... Rcf8 {[%clk 0:00:05.6]} 23. Ne2 {[%clk 0:01:37.1]} 23... Nxe2+
{[%clk 0:00:04.8]} 24. Bxe2 {[%clk 0:01:36.7]} 24... Nxf3 {[%clk 0:00:05.7]} 25.
Bxf3 {[%clk 0:01:16.1]} 25... Rxf3 {[%clk 0:00:06.6]} 26. Rxf3 {[%clk
0:01:12.3]} 26... Rxf3 {[%clk 0:00:07.5]} 27. e5 {[%clk 0:01:01.9]} 27... Rxe3
{[%clk 0:00:06]} 28. exd6 {[%clk 0:01:02.2]} 28... Re1+ {[%clk 0:00:06.2]} 29.
Rd1 {[%clk 0:01:02.1]} 29... Bg5+ {[%clk 0:00:05.6]} 0-1

[Event "Early-Titled-Tuesday-Blitz-January-30-2024"]
[Site "Chess.com"]
[Date "2024.01.30"]
[Round "8"]
[White "SantoBlue"]
[Black "GMKrikor"]
[Result "1-0"]
[WhiteElo "2968"]
[BlackElo "2816"]
[TimeControl "180+1"]
[EndTime "9:28:53 PST"]
[Termination "SantoBlue won on time"]

1. e4 {[%clk 0:02:53.4]} 1... e6 {[%clk 0:02:59.8]} 2. d4 {[%clk 0:02:49.7]}
2... d5 {[%clk 0:03:00.1]} 3. Nd2 {[%clk 0:02:50.4]} 3... c5 {[%clk 0:02:59.9]}
4. exd5 {[%clk 0:02:50.5]} 4... Qxd5 {[%clk 0:03:00.8]} 5. Ngf3 {[%clk
0:02:45.8]} 5... cxd4 {[%clk 0:03:01]} 6. Bc4 {[%clk 0:02:45.8]} 6... Qd7 {[%clk
0:03:01.4]} 7. O-O {[%clk 0:02:45.2]} 7... Nc6 {[%clk 0:03:01.7]} 8. Qe2 {[%clk
0:02:45.9]} 8... a6 {[%clk 0:03:01.6]} 9. Nb3 {[%clk 0:02:45.3]} 9... Nf6 {[%clk
0:02:57.4]} 10. Rd1 {[%clk 0:02:45]} 10... b5 {[%clk 0:02:49]} 11. Bd3 {[%clk
0:02:43.1]} 11... Bb7 {[%clk 0:02:04.7]} 12. a4 {[%clk 0:02:40]} 12... Nb4
{[%clk 0:01:48.6]} 13. Nbxd4 {[%clk 0:02:29.7]} 13... Nxd3 {[%clk 0:01:47.9]}
14. Rxd3 {[%clk 0:02:30.6]} 14... bxa4 {[%clk 0:01:22]} 15. Bf4 {[%clk 0:02:20]}
15... Nd5 {[%clk 0:01:16.2]} 16. Bg3 {[%clk 0:02:17.9]} 16... Be7 {[%clk
0:01:05.1]} 17. Ne5 {[%clk 0:02:14.7]} 17... Qc8 {[%clk 0:01:04.2]} 18. Rxa4
{[%clk 0:01:51.9]} 18... O-O {[%clk 0:00:58.2]} 19. h3 {[%clk 0:01:52.6]} 19...
a5 {[%clk 0:00:54.2]} 20. Qh5 {[%clk 0:01:44.3]} 20... Nf6 {[%clk 0:00:46.3]}
21. Qd1 {[%clk 0:01:43.1]} 21... Ne4 {[%clk 0:00:42.4]} 22. Rc4 {[%clk
0:01:42.7]} 22... Qe8 {[%clk 0:00:33.3]} 23. Ndc6 {[%clk 0:01:43.3]} 23... Nxg3
{[%clk 0:00:03.5]} 24. fxg3 {[%clk 0:01:44.2]} 24... Bf6 {[%clk 0:00:03.6]} 25.
Nd7 {[%clk 0:01:41.8]} 25... Be7 {[%clk 0:00:01.5]} 26. Nxe7+ {[%clk 0:01:36.4]}
26... Qxe7 {[%clk 0:00:01.5]} 27. Nxf8 {[%clk 0:01:37.1]} 27... Qxf8 {[%clk
0:00:02]} 28. Kh2 {[%clk 0:01:36.9]} 28... Ba6 {[%clk 0:00:02.2]} 29. Rc7 {[%clk
0:01:34.1]} 29... Bxd3 {[%clk 0:00:02.3]} 30. Qxd3 {[%clk 0:01:35]} 30... a4
{[%clk 0:00:02.8]} 31. Qf3 {[%clk 0:01:34.4]} 31... Rb8 {[%clk 0:00:02.3]} 32.
Qc3 {[%clk 0:01:33.8]} 32... g6 {[%clk 0:00:02.5]} 33. Ra7 {[%clk 0:01:34.3]}
33... Rc8 {[%clk 0:00:01.8]} 34. Qf3 {[%clk 0:01:33.8]} 34... a3 {[%clk
0:00:01.4]} 35. bxa3 {[%clk 0:01:31.7]} 35... Rxc2 {[%clk 0:00:02.1]} 36. a4
{[%clk 0:01:31.5]} 36... Rc8 {[%clk 0:00:02.7]} 37. a5 {[%clk 0:01:31.8]} 37...
h5 {[%clk 0:00:02.3]} 38. a6 {[%clk 0:01:32.1]} 38... Qe8 {[%clk 0:00:02.3]} 39.
Rb7 {[%clk 0:01:30.9]} 39... Ra8 {[%clk 0:00:02]} 40. a7 {[%clk 0:01:31.2]} 1-0

[Event "Early-Titled-Tuesday-Blitz-January-30-2024"]
[Site "Chess.com"]
[Date "2024.01.30"]
[Round "8"]
[White "alekroth65"]
[Black "Yushko_Olga"]
[Result "1-0"]
[WhiteElo "2366"]
[BlackElo "2163"]
[TimeControl "180+1"]
[EndTime "9:29:01 PST"]
[Termination "alekroth65 won on time"]

1. d4 {[%clk 0:03:00.9]} 1... e6 {[%clk 0:02:58.3]} 2. c4 {[%clk 0:02:59.9]}
2... Nf6 {[%clk 0:02:58.3]} 3. Nf3 {[%clk 0:02:57.7]} 3... d5 {[%clk 0:02:58.6]}
4. Bg5 {[%clk 0:02:56.1]} 4... Nbd7 {[%clk 0:02:51.2]} 5. cxd5 {[%clk
0:02:53.9]} 5... exd5 {[%clk 0:02:51.5]} 6. e3 {[%clk 0:02:54.5]} 6... Bb4+
{[%clk 0:02:46.9]} 7. Nc3 {[%clk 0:02:54.3]} 7... O-O {[%clk 0:02:47.6]} 8. Bd3
{[%clk 0:02:52.9]} 8... h6 {[%clk 0:02:44.7]} 9. Bh4 {[%clk 0:02:46.6]} 9... c5
{[%clk 0:02:39]} 10. O-O {[%clk 0:02:44.6]} 10... c4 {[%clk 0:02:26]} 11. Nxd5
{[%clk 0:02:31.6]} 11... g5 {[%clk 0:01:42.3]} 12. Nxb4 {[%clk 0:02:29.4]} 12...
cxd3 {[%clk 0:01:41.4]} 13. Bg3 {[%clk 0:02:26.5]} 13... Ne4 {[%clk 0:01:34.2]}
14. Nxd3 {[%clk 0:02:21.4]} 14... f5 {[%clk 0:01:30.2]} 15. Be5 {[%clk
0:02:15.1]} 15... Ndf6 {[%clk 0:01:26.2]} 16. Nd2 {[%clk 0:02:09]} 16... Nd6
{[%clk 0:01:18.8]} 17. Rc1 {[%clk 0:02:05.5]} 17... Be6 {[%clk 0:01:18.1]} 18.
b3 {[%clk 0:02:02]} 18... a5 {[%clk 0:01:10.7]} 19. Nc5 {[%clk 0:02:01.5]} 19...
Bf7 {[%clk 0:01:08.5]} 20. Bxd6 {[%clk 0:01:55.8]} 20... Qxd6 {[%clk 0:01:09.4]}
21. Nxb7 {[%clk 0:01:55.3]} 21... Qd5 {[%clk 0:01:03.5]} 22. Nc5 {[%clk
0:01:52.2]} 22... f4 {[%clk 0:00:59.4]} 23. Qf3 {[%clk 0:01:48.4]} 23... Qf5
{[%clk 0:00:52.4]} 24. exf4 {[%clk 0:01:40]} 24... Bd5 {[%clk 0:00:42.1]} 25.
Qd3 {[%clk 0:01:29.6]} 25... Qxf4 {[%clk 0:00:40]} 26. Nc4 {[%clk 0:01:22.6]}
26... Ng4 {[%clk 0:00:12]} 27. g3 {[%clk 0:01:02.7]} 1-0